bitfinex/quotes_ETHUSD_20251126
["timestamp","ask_amount","ask_price","bid_price","bid_amount"]
[1764127159306,0.002,2962.8,2962.5,0.4766]
[1764127159512,0.002,2962.8,2962.7,4.55663438]
[1764127159814,0.0404,2962.8,2962.7,4.55663438]
[1764127159982,0.0404,2962.8,2962.7,5.24353438]
[1764127160584,0.0404,2962.8,2962.7,8.61883393]
[1764127161706,0.5081,2962.8,2962.7,8.61883393]
[1764127162114,0.5081,2962.8,2962.7,5.50629766]
[1764127162524,0.0404,2962.8,2962.7,5.50629766]
[1764127162722,0.5081,2962.8,2962.7,5.50629766]
[1764127164624,0.0404,2962.8,2962.7,5.50629766]
[1764127164832,0.002,2962.8,2962.7,9.81858692]
[1764127164999,0.002,2962.8,2962.7,9.32833393]
[1764127165618,0.002,2962.8,2962.7,9.78483393]
[1764127166545,0.002,2963.1,2963.0,4.55663438]
[1764127166713,0.002,2963.1,2963.0,8.42809219]
[1764127167224,0.002,2963.1,2963.0,8.89579219]
[1764127167810,0.002,2963.1,2963.0,9.35229219]
[1764127168206,0.002,2963.1,2963.0,8.89579219]
[1764127168412,0.002,2963.1,2963.0,9.35229219]
[1764127174641,0.4677,2963.8,2963.7,0.1]
[1764127174842,0.4677,2964.2,2964.0,0.405504]
[1764127175153,0.4677,2964.2,2964.1,0.618504]
[1764127175315,0.5492,2964.2,2964.1,0.6807]
[1764127175917,0.5492,2964.2,2964.1,0.4677]
[1764127176117,0.5492,2964.2,2964.1,0.6807]
[1764127176319,0.5492,2964.2,2964.1,4.77999945]
[1764127176716,0.5492,2964.2,2964.1,4.09929945]
[1764127176921,0.5492,2964.2,2964.1,4.31229945]
[1764127178246,0.5492,2964.2,2964.1,4.09929945]
[1764127178422,0.5492,2964.2,2964.1,3.58670534]
[1764127178622,0.5492,2964.2,2964.0,3.37381695]
[1764127178846,0.4677,2964.2,2964.0,3.37381695]
[1764127179052,0.0815,2964.1,2964.0,3.37381695]
[1764127179417,0.5453,2964.1,2964.0,3.37381695]
[1764127180536,0.5453,2964.1,2963.8,6.74809366]
[1764127180721,0.4638,2964.1,2963.8,6.74809366]
[1764127181051,0.0853,2963.9,2963.8,3.37404683]
[1764127181423,0.5453,2963.9,2963.8,3.37404683]
[1764127183522,0.5453,2963.9,2963.7,3.37410823]
[1764127183849,0.46,2963.9,2963.7,3.37410823]
[1764127184042,0.0891,2963.8,2963.7,4.09970234]
[1764127184648,0.5454,2963.8,2963.7,4.09970234]
[1764127198171,0.5454,2963.8,2963.7,3.37410823]
[1764127198375,0.5454,2963.8,2963.4,0.001]
[1764127198376,0.5454,2963.8,2963.5,6.74877678]
[1764127198557,0.4563,2963.8,2963.5,6.74877678]
[1764127198873,0.0928,2963.6,2963.5,3.37438839]
[1764127199470,0.0928,2963.6,2963.4,3.3754733]
[1764127199471,0.5455,2963.6,2963.4,3.3754733]
[1764127199657,0.0964,2963.5,2963.4,3.3754733]
[1764127200269,0.5455,2963.5,2963.4,0.001]
[1764127213199,0.86086304,2963.5,2963.4,0.001]
[1764127213582,4.32162741,2963.5,2963.4,0.001]
[1764127214107,0.99609114,2963.5,2963.4,0.001]
[1764127217781,8.42330649,2963.5,2963.4,0.001]
[1764127218113,8.42530649,2963.5,2963.4,0.001]
[1764127230304,8.42498833,2963.5,2963.4,0.001]
[1764127231500,1.1785034,2963.5,2963.4,0.4849]
[1764127231700,0.31704488,2963.5,2963.4,0.4849]
[1764127231922,0.31704488,2963.5,2963.4,4.31980226]
[1764127232536,0.002,2963.5,2963.4,4.31980226]
[1764127232954,0.31704488,2963.5,2963.4,4.31980226]
[1764127233135,0.002,2963.5,2963.4,4.31980226]
[1764127233545,0.31704488,2963.5,2963.4,0.9453]
[1764127233724,0.31704488,2963.5,2963.4,0.4849]
[1764127234049,0.002,2963.5,2963.4,4.31980226]
[1764127234553,0.31704488,2963.5,2963.4,4.31980226]
[1764127234751,0.002,2963.5,2963.4,4.31980226]
[1764127235158,0.31704488,2963.5,2963.4,4.31980226]
[1764127235338,0.002,2963.5,2963.4,4.31980226]
[1764127236136,0.002,2963.5,2963.4,0.4849]
[1764127236331,0.002,2963.5,2963.4,0.001]
[1764127236531,0.002,2963.5,2963.4,3.85940226]
[1764127236853,0.002,2963.5,2963.4,4.31980226]
[1764127240963,0.002,2963.5,2963.4,0.9453]
[1764127243371,0.002,2963.5,2963.4,4.31980226]
[1764127243564,0.002,2963.5,2963.4,0.9453]
[1764127243765,0.002,2963.5,2963.4,4.31980226]
[1764127243958,0.002,2963.5,2963.4,0.9453]
[1764127245152,0.002,2963.5,2963.4,4.31980226]
[1764127250946,0.002,2963.5,2963.4,4.72530626]
[1764127251152,0.002,2963.5,2963.4,5.55090037]
[1764127251389,0.002,2963.5,2963.4,5.68608094]
[1764127251894,0.002,2963.5,2963.4,5.58608094]
[1764127253188,0.002,2963.5,2963.4,5.66390037]
[1764127253990,0.002,2963.5,2963.4,5.04539637]
[1764127254166,0.002,2963.5,2963.4,5.25839637]
[1764127256100,0.002,2963.5,2963.4,5.76390037]
[1764127256599,0.002,2963.5,2963.4,5.89908094]
[1764127260365,0.002,2963.5,2963.4,5.45090037]
[1764127260566,0.002,2963.5,2963.4,5.66390037]
[1764127261607,0.002,2963.5,2963.4,5.76390037]
[1764127263101,0.002,2963.5,2963.4,9.09049691]
[1764127263493,0.002,2963.5,2963.4,9.22565921]
[1764127270898,0.002,2963.5,2963.4,5.58606267]
[1764127271318,0.002,2963.5,2963.4,5.79906267]
[1764127272031,0.002,2963.5,2963.4,9.12565921]
[1764127272928,0.002,2963.5,2963.4,9.22565921]
[1764127276627,0.002,2963.5,2963.4,9.22225189]
[1764127278242,0.002,2964.1,2963.8,0.405504]
[1764127278412,0.002,2964.1,2964.0,5.01678733]
[1764127278737,0.002,2964.1,2964.0,8.42434468]
[1764127279030,0.002,2964.1,2964.0,8.86110649]
[1764127279219,0.4578,2965.4,2964.0,8.86110649]
[1764127279220,0.7271839,2965.9,2964.1,2.24789811]
[1764127279419,0.4578,2965.6,2965.0,0.405504]
[1764127279625,0.4578,2965.6,2965.2,0.405504]
[1764127279807,0.1012,2965.3,2965.2,0.405504]
[1764127280406,0.0971,2966.0,2965.2,0.860604]
[1764127280407,0.4554,2965.8,2965.2,0.860604]
[1764127280622,0.4554,2965.9,2965.4,0.405504]
[1764127280939,0.4554,2965.9,2965.3,10.11702018]
[1764127280940,0.4554,2965.9,2965.5,0.213]
[1764127281140,0.1036,2965.6,2965.5,0.213]
[1764127282253,0.5555,2965.6,2965.5,0.213]
[1764127282825,0.1036,2965.6,2965.5,3.58511262]
[1764127283849,0.5525,2966.0,2965.5,7.41232524]
[1764127284261,0.5525,2966.0,2965.5,6.95722524]
[1764127284464,0.1036,2965.6,2965.5,3.58511262]
[1764127284660,0.1036,2965.6,2965.5,3.37211262]
[1764127284861,0.1036,2965.6,2965.5,3.58511262]
[1764127284862,0.5555,2965.6,2965.5,3.58511262]
[1764127285365,0.5555,2965.6,2965.5,3.37211262]
[1764127286651,0.5555,2965.6,2965.2,0.405504]
[1764127286652,0.5555,2965.6,2965.4,3.37221019]
[1764127286958,0.1026,2965.3,2965.2,0.213]
[1764127287169,0.1026,2965.3,2965.2,4.3110479]
[1764127287364,0.5555,2965.3,2965.2,4.3110479]
[1764127288243,0.5555,2965.3,2965.2,4.0980479]
[1764127289231,0.5555,2965.3,2964.8,0.72559411]
[1764127289428,0.4529,2965.3,2964.9,0.213]
[1764127289844,0.1061,2965.0,2964.9,0.213]
[1764127290644,0.5555,2965.0,2964.9,0.213]
[1764127290844,0.5555,2965.0,2964.8,0.72559411]
[1764127291043,0.5555,2965.0,2964.8,4.3115029]
[1764127291044,0.0045,2964.9,2964.8,4.3115029]
[1764127293850,0.1886,2965.0,2964.8,7.68441169]
[1764127294567,0.002,2965.9,2964.9,0.4551]
[1764127294741,0.4554,2965.4,2964.9,0.4551]
[1764127295148,0.4554,2965.4,2965.0,6.74536256]
[1764127295575,0.0992,2965.1,2965.0,4.09827539]
[1764127296250,0.002,2965.9,2965.8,0.505504]
[1764127296455,0.002,2965.9,2965.8,6.13248236]
[1764127296791,0.002,2965.9,2965.8,6.55608884]
[1764127296945,0.002,2965.9,2965.8,6.17058733]
[1764127297145,0.002,2965.9,2965.8,9.54235885]
[1764127298076,0.002,2965.9,2965.8,9.32935885]
[1764127298374,0.002,2965.9,2965.8,9.54235885]
[1764127302683,1e-08,2966.2,2966.1,1.158504]
[1764127302868,1e-08,2966.2,2966.1,1.79919811]
[1764127303180,1e-08,2966.2,2966.1,2.39199811]
[1764127303559,1e-08,2966.2,2966.1,5.7634286]
[1764127304596,1e-08,2966.2,2966.1,5.7971429]
[1764127306781,1e-08,2966.2,2966.1,5.7634286]
[1764127306984,1e-08,2966.2,2966.1,5.5504286]
[1764127307209,1e-08,2966.2,2966.1,5.93218245]
[1764127307809,0.002,2966.8,2966.7,0.505504]
[1764127308102,0.002,2966.8,2966.7,5.50218733]
[1764127308320,0.002,2966.8,2966.7,1.89919811]
[1764127308472,0.002,2966.8,2966.7,5.74889481]
[1764127308670,0.002,2966.8,2966.7,5.71518733]
[1764127309672,0.002,2966.8,2966.7,9.08593597]
[1764127310698,0.002,2966.8,2966.7,8.87293597]
[1764127310921,0.002,2966.8,2966.7,9.08593597]
[1764127312776,0.002,2966.8,2966.7,8.47073197]
[1764127313015,0.0553,2966.8,2966.7,4.69244275]
[1764127313193,0.0553,2966.8,2966.7,4.17984864]
[1764127313394,0.0553,2966.8,2966.7,4.08925264]
[1764127313595,0.0553,2966.8,2966.7,4.81484675]
[1764127313795,0.0553,2966.8,2966.7,4.40934275]
[1764127314217,0.0553,2966.8,2966.7,4.81484675]
[1764127314890,0.0553,2966.8,2966.7,4.60184675]
[1764127315094,0.0553,2966.8,2966.7,4.40934275]
[1764127315294,0.0553,2966.8,2966.7,4.81484675]
[1764127315918,0.5482,2966.8,2966.7,4.71484675]
[1764127316116,0.0553,2966.8,2966.7,4.71484675]
[1764127317124,0.0553,2966.8,2966.7,4.50184675]
[1764127317490,0.0553,2966.8,2966.7,4.71484675]
[1764127318027,0.0553,2966.8,2966.7,4.30934275]
[1764127318319,0.0553,2966.8,2966.7,4.81484675]
[1764127318541,0.002,2966.8,2966.7,4.81484675]
[1764127318730,0.0565,2966.8,2966.7,4.81484675]
[1764127318926,0.5482,2966.8,2966.7,4.71484675]
[1764127319236,0.5482,2966.8,2966.7,4.50184675]
[1764127319437,0.5482,2966.8,2966.7,4.71484675]
[1764127320048,0.5482,2966.8,2966.7,4.30934275]
[1764127320408,0.5482,2966.8,2966.7,4.09634275]
[1764127320752,0.5482,2966.8,2966.7,4.30934275]
[1764127321119,0.0565,2966.8,2966.7,4.71484675]
[1764127321408,0.7229,2966.8,2966.7,4.50184675]
[1764127321622,0.7229,2966.8,2966.7,4.71484675]
[1764127323438,0.2615,2966.8,2966.7,4.71484675]
[1764127324039,0.7229,2966.8,2966.7,4.71484675]
[1764127326040,0.2615,2966.8,2966.7,4.71484675]
[1764127329016,0.7229,2966.8,2966.7,4.71484675]
[1764127329939,0.7229,2966.8,2966.7,4.50184675]
[1764127330145,0.7229,2966.8,2966.7,4.71484675]
[1764127330950,0.7229,2966.8,2966.7,4.09634275]
[1764127331940,0.2615,2966.8,2966.7,4.09634275]
[1764127332717,0.002,2966.8,2966.7,4.09634275]
[1764127333553,0.0897,2966.8,2966.7,4.09634275]
[1764127336765,0.5474,2966.8,2966.7,4.09634275]
[1764127337056,0.0897,2966.8,2966.7,4.09634275]
[1764127337827,0.5474,2966.8,2966.7,4.09634275]
[1764127340161,0.5474,2966.8,2966.7,4.30934275]
[1764127340744,0.002,2966.8,2966.7,4.30934275]
[1764127341057,0.002,2966.8,2966.7,4.78364275]
[1764127341428,0.002,2966.8,2966.7,4.30934275]
[1764127341629,0.088,2966.8,2966.7,4.30934275]
[1764127342861,0.5473,2966.8,2966.7,4.30934275]
[1764127343064,0.002,2966.8,2966.7,4.30934275]
[1764127343231,0.088,2966.8,2966.7,4.30934275]
[1764127347860,0.088,2966.8,2966.7,4.09634275]
[1764127348171,0.088,2966.8,2966.7,4.30934275]
[1764127349771,0.5473,2966.8,2966.7,4.30934275]
[1764127349974,0.5473,2966.8,2966.7,3.37074864]
[1764127350876,0.5473,2966.8,2966.6,6.74172443]
[1764127351073,0.0046,2966.7,2966.6,4.09645628]
[1764127351486,0.4677,2966.7,2966.6,3.37086217]
[1764127352773,0.0046,2966.7,2966.6,3.37086217]
[1764127352970,0.0046,2966.7,2966.5,6.74294805]
[1764127353281,0.0815,2966.6,2966.5,4.09756627]
[1764127354172,0.002,2966.8,2966.5,7.46854216]
[1764127354386,0.002,2966.8,2966.5,8.39784216]
[1764127354946,0.002,2966.8,2966.5,7.94284216]
[1764127355560,0.002,2966.8,2966.5,8.39784216]
[1764127357863,0.002,2966.8,2966.7,0.4743]
[1764127358387,0.4886,2966.8,2966.5,7.46854216]
[1764127358592,0.4824,2966.6,2966.5,4.09756627]
[1764127360900,0.002,2966.8,2966.5,7.46854216]
[1764127361590,0.002,2966.8,2966.5,7.92354216]
[1764127362293,0.002,2966.8,2966.5,7.46854216]
[1764127362793,0.002,2966.8,2966.5,7.92354216]
[1764127363391,0.002,2966.8,2966.5,7.46854216]
[1764127363693,0.002,2966.8,2966.5,7.92354216]
[1764127366497,0.002,2966.8,2966.7,0.4743]
[1764127366993,0.002,2966.8,2966.5,7.92354216]
[1764127367492,0.002,2966.8,2966.7,0.4743]
[1764127367887,0.002,2966.8,2966.7,0.9293]
[1764127368601,0.002,2966.8,2966.7,4.30004864]
[1764127368803,0.4886,2966.8,2966.7,3.37074864]
[1764127368977,0.5525,2966.8,2966.7,3.37074864]
[1764127369999,0.4886,2966.8,2966.7,3.37074864]
[1764127372371,0.002,2966.8,2966.7,3.37074864]
[1764127372875,0.0714,2966.8,2966.7,3.37074864]
[1764127373071,0.002,2966.8,2966.7,3.82194864]
[1764127373382,0.002,2966.8,2966.7,4.29634864]
[1764127373577,0.002,2966.8,2966.7,3.82194864]
[1764127373778,0.002,2966.8,2966.7,4.29634864]
[1764127373999,0.002,2966.8,2966.7,5.02194275]
[1764127374300,0.002,2966.8,2966.7,5.52744675]
[1764127374879,0.002,2966.8,2966.7,5.56115423]
[1764127375597,0.002,2966.8,2966.7,5.8772781]
[1764127376678,0.002,2966.8,2966.7,5.84357062]
[1764127377585,0.002,2966.8,2966.7,6.05657062]
[1764127378994,0.002,2966.8,2966.7,5.84357062]
[1764127379294,0.002,2966.8,2966.7,6.05657062]
[1764127379881,0.90822889,2968.9,2967.4,0.405504]
[1764127380080,3.31787566,2968.3,2967.5,0.213]
[1764127380301,0.0694,2967.4,2966.9,0.405504]
[1764127380506,0.0694,2967.4,2967.1,0.405504]
[1764127380703,0.6664,2967.4,2967.3,0.72559411]
[1764127380873,0.2629,2967.4,2967.3,0.72559411]
[1764127381075,0.4729,2967.6,2967.3,0.72559411]
[1764127381076,0.6635,2967.6,2967.3,0.72559411]
[1764127381292,0.0763,2967.4,2967.3,0.72559411]
[1764127381483,0.0763,2967.4,2967.3,0.93859411]
[1764127381995,0.1906,2967.6,2967.3,0.93859411]
[1764127382176,0.492,2967.4,2967.3,0.93859411]
[1764127382822,0.5494,2967.4,2967.3,4.30866117]
[1764127383117,0.492,2967.4,2967.3,4.09566117]
[1764127384420,0.5494,2967.4,2967.3,4.09566117]
[1764127385120,0.5494,2967.4,2966.8,0.213]
[1764127385294,0.5494,2967.4,2966.9,0.72559411]
[1764127385295,0.492,2967.4,2966.9,0.72559411]
[1764127385690,0.5494,2967.4,2966.9,0.72559411]
[1764127385993,0.492,2967.4,2966.9,0.72559411]
[1764127386405,0.0574,2967.0,2966.8,0.93859411]
[1764127386594,0.1906,2967.6,2966.8,0.93859411]
[1764127386595,0.4842,2967.2,2966.8,1.34409811]
[1764127386802,0.4842,2967.2,2966.9,0.213]
[1764127387001,0.4842,2967.2,2967.0,3.37040781]
[1764127387520,0.0652,2967.1,2967.0,4.09600192]
[1764127388905,0.1906,2967.6,2967.0,7.94590973]
[1764127389114,0.4842,2967.5,2967.0,7.94590973]
[1764127389595,0.1906,2967.6,2967.0,7.94590973]
[1764127390201,0.1906,2967.8,2967.1,0.72559411]
[1764127390517,0.1906,2967.8,2967.1,0.82559411]
[1764127390722,0.1906,2967.8,2967.1,0.72559411]
[1764127390723,0.0652,2967.2,2967.1,0.72559411]
[1764127390905,0.5452,2967.2,2967.1,3.37029422]
[1764127391100,0.0652,2967.2,2967.1,3.37029422]
[1764127393018,0.4862,2967.6,2967.1,6.74058844]
[1764127393335,0.0652,2967.2,2967.1,3.37029422]
[1764127393633,0.4862,2967.6,2967.1,6.74058844]
[1764127393830,0.4862,2967.6,2967.1,7.22008844]
[1764127394003,0.0652,2967.2,2967.1,3.37029422]
[1764127395230,0.5452,2967.2,2966.9,3.37150362]
[1764127395406,0.0646,2967.0,2966.9,3.37150362]
[1764127395804,0.5452,2967.0,2966.9,3.37150362]
[1764127396606,0.0646,2967.0,2966.9,3.37150362]
[1764127397537,0.0646,2967.0,2966.9,0.001]
[1764127397827,0.5452,2967.0,2966.9,0.001]
[1764127398807,0.0646,2967.0,2966.9,0.001]
[1764127399023,0.002,2967.6,2966.9,0.001]
[1764127399230,0.0652,2967.0,2966.9,0.001]
[1764127399838,0.5452,2967.0,2966.9,3.37152141]
[1764127401623,0.5452,2967.0,2966.9,0.001]
[1764127402741,4.23128536,2967.0,2966.9,0.001]
[1764127404150,0.86087755,2967.0,2966.9,0.001]
[1764127406565,4.23128536,2967.0,2966.9,0.001]
[1764127408978,0.72559411,2966.9,2966.6,0.001]
[1764127409155,3.49838356,2966.7,2966.3,0.001]
[1764127409330,3.32328356,2966.4,2966.3,0.001]
[1764127409662,3.85196111,2966.4,2966.3,0.001]
[1764127409826,4.34086111,2966.4,2966.3,0.001]
[1764127410027,13.60333419,2966.4,2966.2,0.001]
[1764127410235,1.5860581,2966.3,2966.2,0.001]
[1764127412155,4.95726128,2966.3,2966.2,0.001]
[1764127413248,4.23108073,2966.3,2966.2,0.001]
[1764127413570,7.60228391,2966.3,2965.9,0.001]
[1764127413768,3.32378356,2966.0,2965.9,0.001]
[1764127413970,3.85246111,2966.0,2965.9,0.001]
[1764127414148,4.34136111,2966.0,2965.9,0.001]
[1764127414338,7.71290527,2966.0,2965.9,0.001]
[1764127415067,4.02568356,2966.0,2965.9,0.001]
[1764127415238,7.39722772,2966.0,2965.9,0.001]
[1764127417979,4.02568356,2966.0,2965.9,0.001]
[1764127418383,7.39722772,2966.0,2965.9,0.001]
[1764127419481,4.02568356,2966.0,2965.9,0.001]
[1764127419774,7.39722772,2966.0,2965.9,0.001]
[1764127421882,6.90832772,2966.0,2965.9,0.001]
[1764127422091,7.39722772,2966.0,2965.9,0.001]
[1764127424969,7.71143473,2966.0,2965.9,0.001]
[1764127425900,7.22253473,2966.0,2965.9,0.001]
[1764127426069,0.2188,2966.0,2965.9,0.001]
[1764127426387,3.90453653,2966.0,2965.9,0.001]
[1764127426588,4.39343653,2966.0,2965.9,0.001]
[1764127429668,7.71142009,2966.0,2965.9,0.001]
[1764127430196,8.43561498,2966.0,2965.9,0.001]
[1764127431213,8.43592204,2966.0,2965.9,0.001]
[1764127431411,26.81433804,2966.0,2965.9,0.001]
[1764127431610,23.98209204,2966.0,2965.9,0.001]
[1764127431906,8.43592204,2966.0,2965.9,0.001]
[1764127434677,7.94702204,2966.0,2965.9,0.001]
[1764127435503,7.94122204,2966.0,2965.9,0.001]
[1764127435703,4.62323848,2966.0,2965.9,0.001]
[1764127435903,4.62323848,2966.0,2965.9,0.456]
[1764127437105,1.25169432,2966.0,2965.9,0.456]
[1764127437309,5.53146737,2966.0,2965.9,0.456]
[1764127437510,5.53146737,2966.0,2965.9,0.001]
[1764127437882,5.53146737,2966.0,2965.9,0.456]
[1764127438312,4.62323848,2966.0,2965.9,0.001]
[1764127438513,4.68493848,2966.0,2965.9,0.001]
[1764127439301,1.25169432,2966.0,2965.9,0.001]
[1764127439813,4.62323848,2966.0,2965.9,0.456]
[1764127440384,1.25169432,2966.0,2965.9,0.456]
[1764127441718,2.16181452,2966.0,2965.9,0.456]
[1764127441905,2.16181452,2966.0,2965.9,0.9438]
[1764127442216,1.25169432,2966.0,2965.9,0.9438]
[1764127443005,1.03869432,2966.0,2965.9,0.9438]
[1764127443214,0.31449943,2966.0,2965.9,4.31545784]
[1764127444429,0.002,2966.2,2965.9,4.31545784]
[1764127444430,0.002,2966.2,2965.9,7.68711568]
[1764127444608,0.002,2966.2,2966.1,0.6764]
[1764127444808,0.31779665,2966.2,2966.1,0.6764]
[1764127445035,0.31779665,2966.2,2966.1,1.1642]
[1764127445436,0.002,2966.2,2966.1,1.1642]
[1764127445946,0.0695,2966.2,2965.9,3.37258086]
[1764127446116,0.3177094,2966.2,2965.9,0.4888]
[1764127446447,0.002,2966.2,2965.9,0.001]
[1764127446616,3.68891715,2966.2,2965.9,0.001]
[1764127446817,0.0675,2966.0,2965.9,0.001]
[1764127447016,0.38302882,2966.0,2965.9,0.001]
[1764127447231,0.31552882,2966.0,2965.9,0.4841]
[1764127447407,0.31552882,2966.0,2965.9,0.9719]
[1764127448622,0.31552882,2966.0,2965.9,0.4841]
[1764127450428,0.38302882,2966.0,2965.9,0.001]
[1764127451043,0.38302882,2966.0,2965.9,0.4841]
[1764127451044,0.31552882,2966.0,2965.9,0.4841]
[1764127451253,0.31552882,2966.0,2965.9,0.9719]
[1764127451420,0.31552882,2966.0,2965.9,4.34355784]
[1764127451834,0.31552882,2966.1,2965.9,4.34355784]
[1764127452034,0.002,2966.2,2965.9,4.34355784]
[1764127452035,0.31552882,2966.0,2965.9,3.37265784]
[1764127452219,0.31552882,2966.0,2965.9,0.001]
[1764127452522,0.002,2966.2,2965.9,0.9719]
[1764127452523,0.31552882,2966.1,2965.9,0.9719]
[1764127452723,0.31552882,2966.0,2965.9,0.4888]
[1764127453010,0.002,2966.2,2965.9,0.9719]
[1764127453231,0.002,2966.2,2966.1,0.6764]
[1764127453512,0.002,2966.2,2966.1,0.4831]
[1764127453736,0.002,2966.2,2966.1,0.9709]
[1764127453940,0.002,2966.2,2966.1,1.1642]
[1764127454436,0.002,2966.2,2966.1,4.53563049]
[1764127455239,0.002,2966.2,2966.1,1.1642]
[1764127455440,0.002,2966.2,2966.1,4.53563049]
[1764127456450,0.002,2966.2,2966.1,0.6764]
[1764127456817,0.002,2966.2,2966.1,1.1642]
[1764127457217,0.002,2966.2,2966.1,4.53563049]
[1764127468721,0.0675,2966.2,2966.0,0.001]
[1764127468923,3.32482831,2966.1,2966.0,0.001]
[1764127469124,3.63967867,2966.1,2966.0,0.001]
[1764127469334,4.84890181,2966.1,2966.0,0.001]
[1764127470927,8.2203323,2966.1,2966.0,0.001]
[1764127473326,4.36510181,2966.1,2966.0,0.001]
[1764127473726,8.2203323,2966.1,2966.0,0.001]
[1764127478363,4.41650399,2966.1,2966.0,0.001]
[1764127480668,8.2203323,2966.1,2966.0,0.001]
[1764127480967,7.7365323,2966.1,2966.0,0.001]
[1764127481670,8.2203323,2966.1,2966.0,0.001]
[1764127484871,7.73114646,2966.1,2966.0,0.001]
[1764127485074,4.47661815,2966.1,2966.0,0.001]
[1764127486074,4.41111815,2966.1,2966.0,0.001]
[1764127486278,1.03968766,2966.1,2966.0,0.001]
[1764127486450,1.03968766,2966.1,2966.0,0.9461]
[1764127486848,0.31426452,2966.1,2966.0,0.9461]
[1764127487044,0.002,2966.2,2966.0,0.9461]
[1764127487045,0.31626452,2966.2,2966.0,0.9461]
[1764127487257,0.31426452,2966.1,2966.0,0.001]
[1764127487457,0.002,2966.2,2966.1,0.6694]
[1764127487661,0.3165697,2966.2,2966.1,0.6694]
[1764127487858,0.3165697,2966.2,2966.1,1.143]
[1764127488982,0.3165697,2966.2,2966.1,4.51443049]
[1764127489277,0.3165697,2966.2,2966.1,1.143]
[1764127498111,0.3165697,2966.2,2966.1,4.51443049]
[1764127498112,0.002,2966.2,2966.1,4.51443049]
[1764127500304,0.002,2966.2,2966.1,3.37143049]
[1764127500506,0.002,2966.2,2966.0,7.46964729]
[1764127501425,0.002,2966.2,2966.0,4.09810313]
[1764127501917,0.002,2966.2,2966.0,3.37254326]
[1764127502544,0.002,2966.2,2966.0,6.74408742]
[1764127503208,0.002,2966.2,2966.1,3.72553231]
[1764127503409,0.002,2966.2,2966.1,4.45112642]
[1764127504033,0.002,2966.2,2966.1,4.55112642]
[1764127504349,0.002,2966.2,2966.1,4.58484072]
[1764127504523,0.002,2966.2,2966.1,7.95627121]
[1764127504858,0.002,2966.2,2966.1,7.92255691]
[1764127505730,0.002,2966.2,2966.1,7.82255691]
[1764127506113,0.002,2966.2,2966.1,7.92255691]
[1764127506311,0.002,2966.2,2966.1,9.07185691]
[1764127506548,0.002,2966.2,2966.1,9.28485691]
[1764127507120,0.002,2966.2,2966.1,8.59365691]
[1764127508271,0.002,2966.2,2966.1,7.82255691]
[1764127508272,0.0855,2966.2,2966.1,7.82255691]
[1764127508437,0.0855,2966.2,2966.1,8.03555691]
[1764127508629,0.0855,2966.2,2966.1,8.13555691]
[1764127510450,0.002,2966.2,2966.1,8.13555691]
[1764127513072,0.002,2966.2,2966.1,8.03555691]
[1764127514668,0.0893,2966.2,2966.1,4.0970246]
[1764127514968,0.5474,2966.2,2966.1,4.3100246]
[1764127515264,0.5474,2966.2,2966.1,4.7155286]
[1764127521584,0.5474,2966.2,2966.1,4.8155286]
[1764127525388,0.002,2966.2,2966.1,5.3015286]
[1764127525980,0.4833,2966.2,2966.1,4.7155286]
[1764127526192,0.5513,2966.2,2966.1,4.7155286]
[1764127526792,0.4833,2966.2,2966.1,4.7155286]
[1764127527289,0.4791,2966.2,2966.1,4.7155286]
[1764127527470,0.5512,2966.2,2966.1,4.7155286]
[1764127528585,0.4791,2966.2,2966.1,4.7155286]
[1764127532267,0.002,2966.2,2966.1,4.7155286]
[1764127532990,0.002,2966.2,2966.0,3.37254326]
[1764127532991,0.002,2966.2,2966.0,3.37253904]
[1764127533192,0.002,2966.2,2966.0,6.7440832]
[1764127533395,0.002,2966.2,2966.0,3.37253904]
[1764127533584,0.002,2966.2,2966.0,0.001]
[1764127538269,0.002,2966.2,2966.0,0.4655]
[1764127538830,0.002,2966.2,2966.1,0.486]
[1764127539996,0.002,2966.2,2966.1,3.85743049]
[1764127543201,0.002,2966.2,2966.0,0.001]
[1764127543202,0.5471,2966.2,2966.0,0.001]
[1764127543391,0.0049,2966.1,2966.0,0.001]
[1764127543898,0.002,2966.2,2966.0,0.001]
[1764127544292,0.002,2966.2,2966.1,0.486]
[1764127544775,0.002,2966.2,2966.1,1.1362]
[1764127545186,0.002,2966.2,2966.1,4.32193049]
[1764127545589,0.002,2966.2,2966.1,4.54134479]
[1764127546191,0.002,2966.2,2966.1,4.50763049]
[1764127550368,0.002,2966.2,2966.1,4.54134479]
[1764127550656,0.002,2966.2,2966.1,4.50763049]
[1764127552941,0.002,2966.2,2966.1,4.32193049]
[1764127553148,0.002,2966.2,2966.1,3.37143049]
[1764127553149,0.0845,2966.2,2966.1,3.37143049]
[1764127555041,0.5473,2966.2,2966.0,0.001]
[1764127555247,0.0046,2966.1,2966.0,3.37254416]
[1764127555437,0.0046,2966.1,2966.0,4.09813827]
[1764127555606,0.4713,2966.1,2966.0,4.09813827]
[1764127556453,0.4713,2966.1,2966.0,0.001]
[1764127558540,0.4713,2966.1,2965.7,0.61651411]
[1764127558736,0.0054,2965.8,2965.7,0.61651411]
[1764127558940,0.0054,2965.8,2965.7,3.98839933]
[1764127559145,0.4721,2965.8,2965.7,3.98839933]
[1764127559834,0.0054,2965.8,2965.7,3.98839933]
[1764127560034,0.4721,2965.8,2965.7,3.98839933]
[1764127560746,0.0054,2965.8,2965.7,3.98839933]
[1764127560938,0.4721,2965.8,2965.7,3.98839933]
[1764127561450,0.0054,2965.8,2965.7,3.98839933]
[1764127561833,0.002,2966.2,2965.7,7.81438455]
[1764127562033,0.4552,2966.2,2965.7,7.81438455]
[1764127562244,0.31503825,2966.1,2965.7,8.28108455]